fUST/lending_fUST_20240707
["ID","MTS","AMOUNT","RATE_DAILY","PERIOD"]
[331399258,1720347073670,-30000.0,0.00027184,2]
[331399259,1720347073679,-154.9967445,0.00027184,2]
[331399260,1720347073689,-155.80923101,0.00027184,2]
[331399261,1720347073699,-155.51598809,0.00027184,2]
[331399262,1720347073708,-156.12329871,0.00027184,2]
[331399263,1720347073718,-155.36568942,0.00027184,2]
[331399264,1720347073727,-154.68290005,0.00027194,2]
[331399265,1720347073737,-232.98135407,0.00027194,2]
[331399266,1720347073747,-637.5,0.00027195,2]
[331399267,1720347073756,-215.10199221,0.00027399,2]
[331399268,1720347073766,-458.22974675,0.00027399,2]
[331399269,1720347073775,-458.22974675,0.00027399,2]
[331399270,1720347073788,-150.0,0.00027826,2]
[331399271,1720347073797,-1405.0,0.00027826,2]
[331399272,1720347073807,-780.52486934,0.0002909,2]
[331399273,1720347073818,-155.35779402,0.0002909,2]
[331399274,1720347073829,-10576.24668885,0.00029823,2]
[331399275,1720347073838,-170.38232151,0.0003,4]
[331399276,1720347073848,-237.0,0.0003,2]
[331399277,1720347073858,-150.0,0.00030826,2]
[331399278,1720347073867,-1405.0,0.00030826,2]
[331399279,1720347073877,-500.0,0.00032876,5]
[331399280,1720347073888,-500.0,0.00032876,5]
[331399281,1720347073898,-500.0,0.00032876,5]
[331399282,1720347073907,-500.0,0.00032876,5]
[331399283,1720347073917,-500.0,0.00032876,5]
[331399284,1720347073926,-500.0,0.00032876,5]
[331399285,1720347073936,-354.58896369,0.00032876,5]
[331399286,1720347073945,-500.0,0.00032876,5]
[331399287,1720347073955,-500.0,0.00032876,5]
[331399288,1720347073965,-2000.0,0.00032876,5]
[331399289,1720347073976,-729.33,0.00032876,5]
[331399290,1720347073985,-1923.52,0.00032876,5]
[331399291,1720347073995,-500.0,0.00032876,5]
[331399292,1720347074005,-500.0,0.00032876,5]
[331399293,1720347074015,-200.0,0.00032876,7]
[331399294,1720347074024,-1608.19,0.00032876,5]
[331399295,1720347074033,-500.0,0.00032876,5]
[331399296,1720347074043,-1025.04,0.00032876,5]
[331399297,1720347074052,-500.0,0.00032876,5]
[331399298,1720347074061,-500.0,0.00032876,5]
[331399299,1720347074071,-500.0,0.00032876,5]
[331399300,1720347074081,-500.0,0.00032876,5]
[331399301,1720347074091,-500.0,0.00032876,5]
[331399302,1720347074102,-500.0,0.00032876,2]
[331399303,1720347074112,-1236.94,0.00032876,5]
[331399304,1720347074121,-500.0,0.00032876,5]
[331399305,1720347074130,-500.0,0.00032876,5]
[331399306,1720347074143,-237.0,0.00033,2]
[331399307,1720347074152,-237.0,0.00033,2]
[331399308,1720347074161,-500.0,0.0003315,5]
[331399309,1720347074170,-500.0,0.0003315,5]
[331399310,1720347074179,-399.23,0.0003315,5]
[331399311,1720347074189,-500.0,0.0003315,5]
[331399312,1720347074198,-2000.0,0.0003315,5]
[331399313,1720347074208,-729.33,0.0003315,5]
[331399314,1720347074217,-1923.52,0.0003315,5]
[331399315,1720347074226,-500.0,0.0003315,5]
[331399316,1720347074235,-200.0,0.0003315,7]
[331399317,1720347074245,-1608.19,0.0003315,5]
[331399318,1720347074254,-247.11966073,0.0003315,5]
[331399319,1720347074264,-1025.04,0.0003315,5]
[331399320,1720347074274,-500.0,0.0003315,5]
[331399321,1720347074283,-500.0,0.0003315,5]
[331399322,1720347074292,-500.0,0.0003315,5]
[331399323,1720347074302,-500.0,0.0003315,5]
[331399324,1720347074311,-500.0,0.0003315,5]
[331399325,1720347074452,-575.95691693,0.0003315,2]
[331399326,1720347074463,-1236.94,0.0003315,5]
[331399327,1720347074475,-500.0,0.0003315,5]
[331399328,1720347074486,-500.0,0.0003315,5]
[331399329,1720347074496,-637.5,0.00033295,2]
[331399330,1720347074508,-500.0,0.00033424,5]
[331399331,1720347074519,-500.0,0.00033424,5]
[331399332,1720347074530,-500.0,0.00033424,5]
[331399333,1720347074541,-2000.0,0.00033424,5]
[331399334,1720347074551,-729.33,0.00033424,5]
[331399335,1720347074560,-1923.52,0.00033424,5]
[331399336,1720347074570,-500.0,0.00033424,5]
[331399337,1720347074580,-200.0,0.00033424,7]
[331399338,1720347074592,-1608.19,0.00033424,5]
[331399339,1720347074603,-1025.04,0.00033424,5]
[331399340,1720347074614,-500.0,0.00033424,5]
[331399341,1720347074624,-500.0,0.00033424,5]
[331399342,1720347074635,-500.0,0.00033424,5]
[331399343,1720347074645,-500.0,0.00033424,5]
[331399344,1720347074654,-500.0,0.00033424,5]
[331399345,1720347074663,-1236.94,0.00033424,5]
[331399346,1720347074674,-500.0,0.00033424,5]
[331399347,1720347074684,-500.0,0.00033424,5]
[331399348,1720347074694,-163.537782,0.00033666,2]
[331399349,1720347074703,-500.0,0.00033698,5]
[331399350,1720347074713,-500.0,0.00033698,5]
[331399351,1720347074722,-729.33,0.00033698,5]
[331399352,1720347074731,-1923.52,0.00033698,5]
[331399353,1720347074741,-500.0,0.00033698,5]
[331399354,1720347074750,-200.0,0.00033698,7]
[331399355,1720347074761,-1608.19,0.00033698,5]
[331399356,1720347074771,-1025.04,0.00033698,5]
[331399357,1720347074786,-500.0,0.00033698,5]
[331399358,1720347074805,-263.72656033,0.00033698,5]
[331399359,1720347074823,-162.78,0.00033698,5]
[331399360,1720347074835,-500.0,0.00033698,5]
[331399361,1720347074845,-500.0,0.00033698,5]
[331399362,1720347074854,-1236.94,0.00033698,5]
[331399363,1720347074864,-500.0,0.00033698,5]
[331399364,1720347074874,-150.0,0.00033826,2]
[331399365,1720347074884,-1405.0,0.00033826,2]
[331399366,1720347074894,-205.94345184,0.00033872,14]
[331399367,1720347074903,-250.4,0.00033972,5]
[331399368,1720347074914,-500.0,0.00033972,5]
[331399369,1720347074924,-729.33,0.00033972,5]
[331399370,1720347074934,-1923.52,0.00033972,5]
[331399371,1720347074945,-500.0,0.00033972,5]
[331399372,1720347074955,-200.0,0.00033972,7]
[331399373,1720347074965,-1608.19,0.00033972,5]
[331399374,1720347074975,-1025.04,0.00033972,5]
[331399375,1720347074986,-500.0,0.00033972,5]
[331399376,1720347074996,-500.0,0.00033972,5]
[331399377,1720347075006,-500.0,0.00033972,5]
[331399378,1720347075017,-1236.94,0.00033972,5]
[331399379,1720347075026,-500.0,0.00033972,5]
[331399380,1720347075037,-983.75784699,0.00034044,2]
[331399381,1720347075047,-500.0,0.00034246,5]
[331399382,1720347075056,-729.33,0.00034246,5]
[331399383,1720347075065,-1923.52,0.00034246,5]
[331399384,1720347075076,-500.0,0.00034246,5]
[331399385,1720347075085,-200.0,0.00034246,7]
[331399386,1720347075096,-1608.19,0.00034246,5]
[331399387,1720347075105,-1025.04,0.00034246,5]
[331399388,1720347075115,-500.0,0.00034246,5]
[331399389,1720347075124,-500.0,0.00034246,5]
[331399390,1720347075135,-500.0,0.00034246,5]
[331399391,1720347075144,-1236.94,0.00034246,5]
[331399392,1720347075153,-500.0,0.00034246,5]
[331399393,1720347075164,-1469.914656,0.00034496,2]
[331399394,1720347075174,-500.0,0.0003452,5]
[331399395,1720347075184,-729.33,0.0003452,5]
[331399396,1720347075193,-1923.52,0.0003452,5]
[331399397,1720347075203,-500.0,0.0003452,5]
[331399398,1720347075213,-200.0,0.0003452,7]
[331399399,1720347075223,-1608.19,0.0003452,5]
[331399400,1720347075232,-1025.04,0.0003452,5]
[331399401,1720347075242,-500.0,0.0003452,5]
[331399402,1720347075252,-500.0,0.0003452,5]
[331399403,1720347075262,-500.0,0.0003452,5]
[331399404,1720347075272,-1236.94,0.0003452,5]
[331399405,1720347075282,-500.0,0.0003452,5]
[331399406,1720347075291,-150.0,0.00034522,2]
[331399407,1720347075301,-5334.55303842,0.0003455,7]
[331399408,1720347075311,-1501.24478952,0.00034669,2]
[331399409,1720347075321,-1389.09563317,0.0003468,4]
[331399410,1720347075331,-500.0,0.00034794,5]
[331399411,1720347075340,-729.33,0.00034794,5]
[331399412,1720347075350,-1923.52,0.00034794,5]
[331399413,1720347075360,-503.79773813,0.00034794,5]
[331399414,1720347075370,-200.0,0.00034794,7]
[331399415,1720347075380,-1608.19,0.00034794,5]
[331399416,1720347075396,-1025.04,0.00034794,5]
[331399417,1720347075406,-500.0,0.00034794,5]
[331399418,1720347075421,-500.0,0.00034794,5]
[331399419,1720347075431,-500.0,0.00034794,5]
[331399420,1720347075440,-1236.94,0.00034794,5]
[331399421,1720347075449,-500.0,0.00034794,5]
[331399422,1720347075460,-1399.26,0.00034988,5]
[331399423,1720347075470,-500.0,0.00034988,5]
[331399424,1720347075480,-500.0,0.00034988,5]
[331399425,1720347075490,-500.0,0.00035068,5]
[331399426,1720347075500,-729.33,0.00035068,5]
[331399427,1720347075510,-1923.52,0.00035068,5]
[331399428,1720347075520,-200.0,0.00035068,7]
[331399429,1720347075530,-1608.19,0.00035068,5]
[331399430,1720347075540,-1025.04,0.00035068,5]
[331399431,1720347075549,-500.0,0.00035068,5]
[331399432,1720347075559,-500.0,0.00035068,5]
[331399433,1720347075569,-500.0,0.00035068,5]
[331399434,1720347075580,-1236.94,0.00035068,5]
[331399435,1720347075589,-500.0,0.00035068,5]
[331399436,1720347075599,-1399.26,0.00035262,5]
[331399437,1720347075610,-500.0,0.00035262,5]
[331399438,1720347075620,-500.0,0.00035262,5]
[331399439,1720347075630,-1091.94033098,0.00035292,21]
[331399440,1720347075639,-500.0,0.00035342,5]
[331399441,1720347075649,-729.33,0.00035342,5]
[331399442,1720347075658,-1923.52,0.00035342,5]
[331399443,1720347075668,-200.0,0.00035342,7]
[331399444,1720347075679,-1608.19,0.00035342,5]
[331399445,1720347075688,-1025.04,0.00035342,5]
[331399446,1720347075698,-500.0,0.00035342,5]
[331399447,1720347075708,-500.0,0.00035342,5]
[331399448,1720347075718,-500.0,0.00035342,5]
[331399449,1720347075728,-1236.94,0.00035342,5]
[331399450,1720347075737,-1399.26,0.00035536,5]
[331399451,1720347075747,-500.0,0.00035536,5]
[331399452,1720347075757,-500.0,0.00035536,5]
[331399453,1720347075767,-359.64,0.00035616,5]
[331399454,1720347075777,-729.33,0.00035616,5]
[331399455,1720347075791,-1923.52,0.00035616,5]
[331399456,1720347075800,-200.0,0.00035616,7]
[331399457,1720347075809,-1608.19,0.00035616,5]
[331399458,1720347075819,-1025.04,0.00035616,5]
[331399459,1720347075829,-500.0,0.00035616,5]
[331399460,1720347075839,-500.0,0.00035616,5]
[331399461,1720347075848,-251.2,0.00035616,5]
[331399462,1720347075859,-1236.94,0.00035616,5]
[331399463,1720347075869,-1399.26,0.0003581,5]
[331399464,1720347075879,-500.0,0.0003581,5]
[331399465,1720347075893,-500.0,0.0003581,5]
[331399466,1720347075903,-729.33,0.0003589,5]
[331399467,1720347075912,-1923.52,0.0003589,5]
[331399468,1720347075922,-200.0,0.0003589,7]
[331399469,1720347075932,-1608.19,0.0003589,5]
[331399470,1720347075941,-1025.04,0.0003589,5]
[331399471,1720347075950,-500.0,0.0003589,5]
[331399472,1720347075962,-500.0,0.0003589,5]
[331399473,1720347075972,-1236.94,0.0003589,5]
[331399474,1720347075982,-495.639058,0.00035999,4]
[331399475,1720347075992,-237.0,0.00036,2]
[331399476,1720347076001,-237.0,0.00036,2]
[331399477,1720347076011,-1399.26,0.00036084,5]
[331399478,1720347076020,-500.0,0.00036084,5]
[331399479,1720347076030,-500.0,0.00036084,5]
[331399480,1720347076040,-729.33,0.00036164,5]
[331399481,1720347076049,-1923.52,0.00036164,5]
[331399482,1720347076060,-200.0,0.00036164,7]
[331399483,1720347076070,-1608.19,0.00036164,5]
[331399484,1720347076080,-1025.04,0.00036164,5]
[331399485,1720347076089,-500.0,0.00036164,5]
[331399486,1720347076102,-500.0,0.00036164,5]
[331399487,1720347076111,-1236.94,0.00036164,5]
[331399488,1720347076122,-264.97857403,0.00036351,2]
[331399489,1720347076131,-1399.26,0.00036358,5]
[331399490,1720347076141,-500.0,0.00036358,5]
[331399491,1720347076151,-500.0,0.00036358,5]
[331399492,1720347076161,-175.1,0.00036377,15]
[331399493,1720347076171,-160.0,0.00036387,3]
[331399494,1720347076181,-729.33,0.00036438,5]
[331399495,1720347076191,-1923.52,0.00036438,5]
[331399496,1720347076200,-200.0,0.00036438,7]
[331399497,1720347076210,-1608.19,0.00036438,5]
[331399498,1720347076220,-1025.04,0.00036438,5]
[331399499,1720347076230,-500.0,0.00036438,5]
[331399500,1720347076239,-500.0,0.00036438,5]
[331399501,1720347076249,-1236.94,0.00036438,5]
[331399502,1720347076259,-1399.26,0.00036632,5]
[331399503,1720347076269,-500.0,0.00036632,5]
[331399504,1720347076279,-500.0,0.00036632,5]
[331399505,1720347076289,-729.33,0.00036712,5]
[331399506,1720347076299,-1923.52,0.00036712,5]
[331399507,1720347076309,-200.0,0.00036712,7]
[331399508,1720347076319,-1608.19,0.00036712,5]
[331399509,1720347076329,-1025.04,0.00036712,5]
[331399510,1720347076339,-500.0,0.00036712,5]
[331399511,1720347076348,-500.0,0.00036712,5]
[331399512,1720347076358,-1236.94,0.00036712,5]
[331399513,1720347076368,-154.68290005,0.00036732,2]
[331399514,1720347076377,-175.1,0.00036821,15]
[331399515,1720347076388,-150.0,0.00036826,2]
[331399516,1720347076398,-1405.0,0.00036826,2]
[331399517,1720347076407,-1399.26,0.00036906,5]
[331399518,1720347076417,-151.86315385,0.00036906,5]
[331399519,1720347076427,-500.0,0.00036906,5]
[331399520,1720347076437,-729.33,0.00036986,5]
[331399521,1720347076446,-1923.52,0.00036986,5]
[331399522,1720347076455,-200.0,0.00036986,7]
[331399523,1720347076464,-1608.19,0.00036986,5]
[331399524,1720347076474,-1025.04,0.00036986,5]
[331399525,1720347076484,-500.0,0.00036986,5]
[331399526,1720347076495,-500.0,0.00036986,5]
[331399527,1720347076505,-1236.94,0.00036986,5]
[331399528,1720347076515,-155.39066223,0.00037,4]
[331399529,1720347076525,-435.0,0.0003701,2]
[331399530,1720347076536,-1399.26,0.0003718,5]
[331399531,1720347076545,-500.0,0.0003718,5]
[331399532,1720347076555,-160.0,0.00037215,4]
[331399533,1720347076565,-256.67016396,0.00037259,2]
[331399534,1720347076575,-360.67384349,0.00037259,4]
[331399535,1720347076585,-531.69870251,0.00037259,30]
[331399536,1720347076595,-729.33,0.0003726,5]
[331399537,1720347076604,-1923.52,0.0003726,5]
[331399538,1720347076614,-200.0,0.0003726,7]
[331399539,1720347076624,-1608.19,0.0003726,5]
[331399540,1720347076636,-1025.04,0.0003726,5]
[331399541,1720347076646,-395.57,0.0003726,5]
[331399542,1720347076656,-500.0,0.0003726,5]
[331399543,1720347076665,-1236.94,0.0003726,5]
[331399544,1720347076676,-175.1,0.00037265,15]
[331399545,1720347076687,-1399.26,0.00037453,5]
[331399546,1720347076697,-500.0,0.00037453,5]
[331399547,1720347076707,-155.977319,0.00037512,2]
[331399548,1720347076717,-371.52482098,0.00037523,4]
[331399549,1720347076727,-729.33,0.00037534,5]
[331399550,1720347076736,-1923.52,0.00037534,5]
[331399551,1720347076747,-193.95448518,0.00037534,7]
[331399552,1720347076757,-1608.19,0.00037534,5]
[331399553,1720347076767,-1025.04,0.00037534,5]
[331399554,1720347076779,-500.0,0.00037534,5]
[331399555,1720347076794,-1236.94,0.00037534,5]
[331399556,1720347076804,-3013.36725694,0.00037686,59]
[331399557,1720347076813,-175.1,0.00037708,15]
[331399558,1720347076825,-152.0,0.00037708,15]
[331399559,1720347076835,-1399.26,0.00037727,5]
[331399560,1720347076845,-542.70518358,0.00037727,5]
[331399561,1720347076855,-729.33,0.00037808,5]
[331399562,1720347076868,-1923.52,0.00037808,5]
[331399563,1720347076878,-1608.19,0.00037808,5]
[331399564,1720347076889,-1025.04,0.00037808,5]
[331399565,1720347076900,-500.0,0.00037808,5]
[331399566,1720347076910,-1236.94,0.00037808,5]
[331399567,1720347076920,-1399.26,0.00038001,5]
[331399568,1720347076931,-160.0,0.00038042,5]
[331399569,1720347076940,-729.33,0.00038082,5]
[331399570,1720347076950,-1923.52,0.00038082,5]
[331399571,1720347076963,-1608.19,0.00038082,5]
[331399572,1720347076974,-1025.04,0.00038082,5]
[331399573,1720347076985,-500.0,0.00038082,5]
[331399574,1720347076995,-1236.94,0.00038082,5]
[331399575,1720347077005,-175.1,0.00038152,15]
[331399576,1720347077015,-152.0,0.00038152,15]
[331399577,1720347077025,-1399.26,0.00038275,5]
[331399578,1720347077035,-729.33,0.00038356,5]
[331399579,1720347077045,-1923.52,0.00038356,5]
[331399580,1720347077054,-1608.19,0.00038356,5]
[331399581,1720347077064,-1025.04,0.00038356,5]
[331399582,1720347077074,-500.0,0.00038356,5]
[331399583,1720347077085,-1236.94,0.00038356,5]
[331399584,1720347077097,-1399.26,0.00038549,5]
[331399585,1720347077107,-152.0,0.00038595,15]
[331399586,1720347077116,-729.33,0.0003863,5]
[331399587,1720347077126,-1923.52,0.0003863,5]
[331399588,1720347077136,-1608.19,0.0003863,5]
[331399589,1720347077146,-1025.04,0.0003863,5]
[331399590,1720347077156,-500.0,0.0003863,5]
[331399591,1720347077165,-1236.94,0.0003863,5]
[331399592,1720347077175,-1399.26,0.00038823,5]
[331399593,1720347077185,-160.0,0.0003887,6]
[331399594,1720347077194,-150.0,0.00038888,2]
[331399595,1720347077204,-729.33,0.00038904,5]
[331399596,1720347077213,-1923.52,0.00038904,5]
[331399597,1720347077223,-1608.19,0.00038904,5]
[331399598,1720347077233,-1025.04,0.00038904,5]
[331399599,1720347077243,-500.0,0.00038904,5]
[331399600,1720347077253,-1236.94,0.00038904,5]
[331399601,1720347077263,-1181.89683432,0.00038999,4]
[331399602,1720347077272,-237.0,0.00039,2]
[331399603,1720347077282,-175.1,0.00039039,15]
[331399604,1720347077291,-152.0,0.00039039,15]
[331399605,1720347077301,-1399.26,0.00039097,5]
[331399606,1720347077310,-729.52164843,0.00039178,5]
[331399607,1720347077320,-1923.6,0.00039178,5]
[331399608,1720347077330,-1608.2376526,0.00039178,5]
[331399609,1720347077339,-1025.1363193,0.00039178,5]
[331399610,1720347077350,-190.06903204,0.00039178,5]
[331399611,1720347077359,-1237.09,0.00039178,5]
[331399612,1720347077369,-1399.26,0.00039371,5]
[331399613,1720347077379,-637.5,0.00039394,2]
[331399614,1720347077391,-200.0,0.00039411,120]
[331399615,1720347077401,-175.1,0.00039483,15]
[331399616,1720347077411,-152.0,0.00039483,15]
[331399617,1720347077421,-1735.0,0.000395,14]
[331399618,1720347077431,-1399.26,0.00039645,5]
[331399619,1720347077441,-160.0,0.00039697,7]
[331399620,1720347077451,-151.24510086,0.00039819,3]
[331399621,1720347077461,-1405.0,0.00039826,2]
[331399622,1720347077471,-1399.26,0.00039919,5]
[331399623,1720347077481,-175.1,0.00039926,15]
[331399624,1720347077490,-152.0,0.00039926,15]
[331399625,1720347077500,-4009.03435647,0.00039999,4]
[331399626,1720347077510,-151.0,0.0004,120]
[331399627,1720347077520,-499.99999901,0.0004,7]
[331399628,1720347077530,-1399.26,0.00040193,5]
[331399629,1720347077540,-633.62517517,0.00040228,4]
[331399630,1720347077550,-633.62517517,0.00040228,4]
[331399631,1720347077560,-587.60606975,0.00040228,2]
[331399632,1720347077570,-175.1,0.0004037,15]
[331399633,1720347077580,-152.0,0.0004037,15]
[331399634,1720347077589,-1399.26,0.00040467,5]
[331399635,1720347077599,-373.0,0.000405,15]
[331399636,1720347077609,-747.0,0.000405,15]
[331399637,1720347077619,-747.0,0.000405,15]
[331399638,1720347077628,-2000.0,0.000405,15]
[331399639,1720347077638,-1495.0,0.000405,15]
[331399640,1720347077648,-293.3880832,0.00040514,2]
[331399641,1720347077657,-308.2919559,0.00040514,2]
[331399642,1720347077667,-306.0,0.00040514,2]
[331399643,1720347077676,-206.2377939,0.00040514,2]
[331399644,1720347077686,-206.2377939,0.00040514,2]
[331399645,1720347077696,-206.2377939,0.00040514,2]
[331399646,1720347077705,-153.0,0.00040514,2]
[331399647,1720347077715,-306.0,0.00040514,2]
[331399648,1720347077725,-153.0,0.00040514,2]
[331399649,1720347077735,-293.4755649,0.00040514,2]
[331399650,1720347077745,-293.4755649,0.00040514,2]
[331399651,1720347077756,-293.4755649,0.00040514,2]
[331399652,1720347077766,-293.4755649,0.00040514,2]
[331399653,1720347077776,-293.4755649,0.00040514,2]
[331399654,1720347077789,-293.4755649,0.00040514,2]
[331399655,1720347077799,-293.4755649,0.00040514,2]
[331399656,1720347077810,-293.4755649,0.00040514,2]
[331399657,1720347077820,-293.4755649,0.00040514,2]
[331399658,1720347077831,-293.4755649,0.00040514,2]
[331399659,1720347077841,-153.0,0.00040514,2]
[331399660,1720347077851,-153.0,0.00040514,2]
[331399661,1720347077862,-153.0,0.00040514,2]
[331399662,1720347077872,-153.0,0.00040514,2]
[331399663,1720347077883,-160.0,0.00040525,8]
[331399664,1720347077893,-31044.2340501,0.00040544,2]
[331399665,1720347077903,-290.39862335,0.00040546,4]
[331399666,1720347077914,-154.90954494,0.00040546,4]
[331399667,1720347077925,-227.0,0.00040546,20]
[331399668,1720347077935,-153.0,0.00040567,2]
[331399669,1720347077945,-153.0,0.00040567,2]
[331399670,1720347077955,-206.2377939,0.00040567,2]
[331399671,1720347077966,-153.0,0.00040567,2]
[331399672,1720347077975,-206.2377939,0.00040567,2]
[331399673,1720347077985,-153.0,0.00040567,2]
[331399674,1720347077995,-206.2377939,0.00040567,2]
[331399675,1720347078005,-206.2377939,0.00040567,2]
[331399676,1720347078015,-1399.26,0.00040741,5]
[331399677,1720347078025,-306.9657163,0.00040795,2]
[331399678,1720347078034,-155.38803171,0.00040807,10]
[331399679,1720347078044,-175.1,0.00040813,15]
[331399680,1720347078054,-152.0,0.00040813,15]
[331399681,1720347078063,-9800.37184734,0.00040962,20]
[331399682,1720347078073,-10000.0,0.00041,41]
[331399683,1720347078084,-2279.64038835,0.00041,2]
[331399684,1720347078093,-1200.0,0.00041,120]
[331399685,1720347078104,-1200.0,0.00041,120]
[331399686,1720347078273,-1200.0,0.00041,120]
[331399687,1720347078297,-1399.26,0.00041015,5]
[331399688,1720347078307,-165.10790482,0.00041095,4]
[331399689,1720347078317,-182.97392112,0.00041095,4]
[331399690,1720347078327,-188.41784728,0.00041095,4]
[331399691,1720347078337,-1000.0,0.00041095,120]
[331399692,1720347078347,-1000.0,0.00041095,120]
[331399693,1720347078357,-1000.0,0.00041095,120]
[331399694,1720347078367,-1000.0,0.00041095,120]
[331399695,1720347078377,-1000.0,0.00041095,120]
[331399696,1720347078388,-1000.0,0.00041095,120]
[331399697,1720347078398,-346.90509035,0.00041095,120]
[331399698,1720347078408,-179.0880074,0.00041096,2]
[331399699,1720347078419,-175.1,0.00041257,31]
[331399700,1720347078429,-152.0,0.00041257,31]
[331399701,1720347078439,-1399.45959323,0.00041289,120]
[331399702,1720347078450,-154.74467129,0.00041314,4]
[331399703,1720347078460,-215.95451843,0.00041314,4]
[331399704,1720347078470,-160.0,0.00041352,9]
[331399705,1720347078481,-1572.62,0.000415,120]
[331399706,1720347078491,-151.0,0.00041616,120]
[331399707,1720347078501,-1045.05367777,0.00041858,30]
[331399708,1720347078512,-683.0,0.00041904,30]
[331399709,1720347078521,-150.42281844,0.00041904,30]
[331399710,1720347078531,-829.32119044,0.00041917,120]
[331399711,1720347078542,-10000.0,0.00042,42]
[331399712,1720347078552,-11000.0,0.00042,120]
[331399713,1720347078562,-200.0,0.00042,120]
[331399714,1720347078572,-2728.63175959,0.00042023,30]
[331399715,1720347078582,-150.42281844,0.00042085,30]
[331399716,1720347078592,-160.0,0.0004218,10]
[331399717,1720347078602,-154.7557292,0.00042189,30]
[331399718,1720347078612,-293.4755649,0.00042192,2]
[331399719,1720347078622,-153.0,0.00042192,2]
[331399720,1720347078632,-153.0,0.00042192,2]
[331399721,1720347078642,-153.0,0.00042192,2]
[331399722,1720347078652,-293.4755649,0.00042192,2]
[331399723,1720347078663,-153.0,0.00042192,2]
[331399724,1720347078673,-153.0,0.00042192,2]
[331399725,1720347078683,-206.2377939,0.00042192,2]
[331399726,1720347078693,-293.4755649,0.00042192,2]
[331399727,1720347078702,-293.4755649,0.00042192,2]
[331399728,1720347078712,-153.0,0.00042192,2]
[331399729,1720347078722,-206.2377939,0.00042192,2]
[331399730,1720347078732,-153.0,0.00042192,2]
[331399731,1720347078743,-153.0,0.00042192,2]
[331399732,1720347078752,-206.2377939,0.00042192,2]
[331399733,1720347078763,-293.4755649,0.00042192,2]
[331399734,1720347078773,-153.0,0.00042192,2]
[331399735,1720347078784,-153.0,0.00042192,2]
[331399736,1720347078795,-293.4755649,0.00042192,2]
[331399737,1720347078805,-153.0,0.00042192,2]
[331399738,1720347078816,-153.0,0.00042192,2]
[331399739,1720347078826,-293.4755649,0.00042192,2]
[331399740,1720347078838,-153.0,0.00042192,2]
[331399741,1720347078847,-153.0,0.00042192,2]
[331399742,1720347078857,-293.4755649,0.00042192,2]
[331399743,1720347078870,-153.0,0.00042192,2]
[331399744,1720347078880,-293.4755649,0.00042192,2]
[331399745,1720347078891,-293.4755649,0.00042192,2]
[331399746,1720347078905,-586.9511298,0.00042192,2]
[331399747,1720347078914,-293.4755649,0.00042192,2]
[331399748,1720347078925,-293.4755649,0.00042192,2]
[331399749,1720347078935,-293.4755649,0.00042192,2]
[331399750,1720347078944,-384.13810206,0.00042345,83]
[331399751,1720347078955,-156.008579,0.00042436,30]
[331399752,1720347078964,-1460.631627,0.00042436,30]
[331399753,1720347078975,-1735.392134,0.00042436,30]
[331399754,1720347078985,-80000.0,0.0004244,30]
[331399755,1720347078995,-8489.18,0.00042465,120]
[331399756,1720347079004,-1167.97586208,0.00042481,30]
[331399757,1720347079014,-546.03638128,0.000425,30]